Cogmind - Beta 13 @@@ ROGUE MODE // 2024.02.24 @ 14:28:05 Player: cptwinky Result: Destroyed by G-67 Veteran with Field Laser Performance ------------- Evolutions (6) 3000 Regions Visited (12) 2400 Robots Destroyed (287) 1435 Value Destroyed (12362) 12362 Prototype IDs (13) 260 Alien Tech Used (0) 0 Bonus (2284) 2284 TOTAL SCORE: 21741 Bonus ------- High Alert Combat Kills 3190 Follower Combat Kills 1570 Friendly Fire -2476 Cogmind --------- Core Integrity 0/1150 Matter 15/300 Energy 100/100 System Corruption 28% Temperature Cool (0) Movement Core (50) Location -4/Armory Parts ------- > --- POWER (2) -------- (None) > --- PROPULSION (5) --- (None) > --- UTILITY (6) ------ (None) > --- WEAPON (6) ------- (None) > --- INVENTORY (5) ---- Improved Transmission Jammer Advanced Hacking Suite Neutron Missile Launcher Neutron Missile Launcher Power Maul Peak State ------------ > --- POWER ------------ Reinforced Deuterium Engine Reinforced Fission Core > --- PROPULSION ------- Flexi-carbon Leg Flexi-carbon Leg Enhanced Armored Leg Enhanced Armored Leg Enhanced Armored Leg > --- UTILITY ---------- Experimental Cooling System High-capacity Storage Unit Advanced Signal Interpreter Improved Heavy Armor Plating Improved Hacking Suite > --- WEAPON ----------- Autogun KE Penetrator Railgun Railgun Hardcell Cannon Heavy Gauss Cannon > --- INVENTORY -------- Flexi-carbon Leg Matter Compressor Improved Particle Accelerator Improved Transmission Jammer Improved Hardlight Generator Improved Force Field Advanced Hacking Suite System Shield Authchip [Propulsion] Long-range Tractor Beam Matter Neutralizer Heavy Gauss Cannon Heavy Gauss Cannon Heavy Gauss Cannon Heavy Gauss Cannon Heavy Gauss Cannon Heavy Rocket Launcher Fusion Bomb Launcher Datajack Power Maul [Rating: 117] Favorites ----------- Power Cooled Ion Engine Engine Cooled Ion Engine Power Core Light Nuclear Core Reactor Antimatter Reactor Propulsion Light Treads Treads Light Treads Leg Enhanced Armored Leg Wheel Compact Wheel Utility Huge Storage Unit Device Experimental Cooling System Storage Huge Storage Unit Processor Core Analyzer Hackware Improved Hacking Suite Protection Hardened Light Armor Plating Weapon Improved Medium Laser Energy Gun Improved Medium Laser Energy Cannon Matter Neutralizer Ballistic Gun Precision Assault Rifle Ballistic Cannon Heavy Gauss Cannon Launcher Mini Grenade Launcher Impact Weapon Power Maul Slashing Weapon Segregator Special Melee Weapon Datajack Build | -11 -10 -9 -9 -8 -7 -6 -6 -6 -5 -5 -4 -4 ------- Run | Yrd Mat Mat Sto Mat Fac Fac Was Fac Fac Ext Fac Arm Slots Evolved 12 | . . 2 . 2 2 2 . . 2 . 2 . Power 1 | . . . . . . . . . 1 . . . Propulsion 3 | . . . . . 1 1 . . . . 1 . Utility 4 | . . . . . 1 1 . . 1 . 1 . Weapon 4 | . . 2 . 2 . . . . . . . . Parts Attached 327 | 2 2 21 28 20 30 42 16 20 12 31 71 32 Power 28 | . . 3 2 . 3 3 1 . 2 3 5 6 Engine 12 | . . 3 2 . . 2 . . 1 2 1 1 Core 11 | . . . . . 3 1 1 . . 1 4 1 Reactor 5 | . . . . . . . . . 1 . . 4 Propulsion 66 | 2 . 2 4 5 2 9 4 5 . 8 19 6 Treads 44 | 2 . 2 4 5 2 6 4 3 . 8 8 . Leg 20 | . . . . . . 1 . 2 . . 11 6 Wheel 2 | . . . . . . 2 . . . . . . Hover . | . . . . . . . . . . . . . Flight . | . . . . . . . . . . . . . Utility 82 | . 2 4 6 4 5 19 3 6 2 6 17 8 Device 49 | . . 1 . 1 3 15 3 5 1 3 11 6 Storage 5 | . . 1 1 1 . . . 1 . . 1 . Processor 5 | . 1 . . . . 2 . . 1 . 1 . Hackware 3 | . 1 . . . . . . . . . 2 . Protection 20 | . . 2 5 2 2 2 . . . 3 2 2 Artifact . | . . . . . . . . . . . . . Weapon 151 | . . 12 16 11 20 11 8 9 8 14 30 12 Energy Gun 25 | . . 11 10 2 2 . . . . . . . Energy Cannon 3 | . . . . . . . . . . . 3 . Ballistic Gun 73 | . . . 1 4 12 10 7 9 7 10 12 1 Ballistic Cannon 13 | . . . . . . . . . . . 8 5 Launcher 26 | . . 1 4 3 5 1 1 . . 2 6 3 Special Weapon . | . . . . . . . . . . . . . Impact Weapon 3 | . . . . . 1 . . . 1 . 1 . Slashing Weapon 1 | . . . . . . . . . . . . 1 Piercing Weapon . | . . . . . . . . . . . . . Special Melee Weapon 7 | . . . 1 2 . . . . . 2 . 2 Unidentified Prototypes 13 | . . 2 2 . 2 . . 5 . . . 2 Corrupted Parts 1 | . . . . . . . . . . 1 . . System Corruption 1 | . . . . . . . . . . 1 . . Parts Lost 85 | . . 1 2 . 4 10 2 1 1 9 38 17 Power 11 | . . . . . 2 . . . . 1 4 4 Propulsion 24 | . . . . . . 3 2 . . . 14 5 Utility 19 | . . 1 2 . . 2 . . . 4 8 2 Weapon 31 | . . . . . 2 5 . 1 1 4 12 6 Highest Loss Streak 10 | . . 1 2 . 3 4 2 1 1 4 10 10 To Critical Strikes 3 | . . . . . . 2 . . . . 1 . Average Slot Usage (%) 93 | . 87 99 99 95 98 99 92 91 87 90 79 76 Engine 5 | . 14 10 11 9 1 1 . . 3 4 3 . Core 2 | . . . . . 4 4 6 6 2 1 5 1 Treads 18 | . 28 22 22 18 23 24 19 18 11 14 7 . Leg 2 | . . . . . . . . . . . 16 18 Device 4 | . . 3 . . 7 7 6 6 5 7 4 5 Storage 7 | . 14 11 11 9 7 6 6 6 5 5 5 4 Processor 4 | . 1 . . . . 6 13 13 16 10 5 4 Hackware 1 | . . 1 . . . . . . . . 5 8 Protection 5 | . . 5 11 8 7 4 . . . 3 2 3 Energy Gun 16 | . 14 43 43 42 11 . . . . . . . Ballistic Gun 20 | . 14 . . 6 33 39 39 40 34 33 13 6 Ballistic Cannon 1 | . . . . . . . . . . . 5 12 Naked Turns 20 | . . . . . . . . . . . . 20 Heaviest Build 159 | 14 14 34 47 111 113 115 111 113 136 159 155 105 Greatest Support 140 | 40 40 40 40 43 63 83 110 140 140 140 136 120 Greatest Overweight (x) 34 | . . . 1 2 1 10 34 1 . 1 4 3 Average Overweight (x) . | . . . . 1 1 1 . . . . . . Largest Inventory Capacity 25 | 8 8 10 15 25 25 25 25 25 25 25 25 20 Average Capacity 20 | 8 8 8 14 21 25 25 25 25 25 25 20 19 Most Carried 25 | 6 8 10 15 25 25 25 25 25 25 25 22 20 Average Carried 19 | 6 6 7 13 20 24 23 24 24 22 24 18 18 Final Capacity 25 | 8 8 10 15 25 25 25 25 25 25 25 20 5 Final Carried 25 | 6 8 10 15 25 24 24 25 25 25 22 20 5 Class Distribution -------------------- 51% | Scavenger-Executioner 23% | Tank 11% | Executioner 4% | Scavenger-Tank 3% | Gunner 3% | Mutant Dominant Class ---------------- Mutant | -10/Materials Tank | -9/Materials Tank | -9/Storage Executioner | -8/Materials Scavenger-Executioner | -7/Factory Scavenger-Executioner | -6/Factory Scavenger-Executioner | -6/Waste Scavenger-Executioner | -6/Factory Scavenger-Executioner | -5/Factory Scavenger-Executioner | -5/Extension Scavenger-Executioner | -4/Factory Scavenger-Executioner | -4/Armory Resources | -11 -10 -9 -9 -8 -7 -6 -6 -6 -5 -5 -4 -4 ----------- Run | Yrd Mat Mat Sto Mat Fac Fac Was Fac Fac Ext Fac Arm Matter Collected 10228 | 199 39 426 411 215 647 2040 526 682 361 1714 2338 630 Remotely 2437 | . . . . . 184 1104 292 . . . 657 200 Salvage Created 13195 | . 40 703 1736 686 935 2187 1237 617 390 2073 2016 575 Parts 590 | . 6 35 83 29 50 100 17 32 23 111 77 27 Haulers Intercepted 16 | . . 4 6 2 1 1 . 1 . . 1 . Recyclers Shooed 16 | . . 1 4 1 . 5 . . 1 1 3 . Parts Field Recycled . | . . . . . . . . . . . . . Retrieved Matter . | . . . . . . . . . . . . . Parts Self-Destructed . | . . . . . . . . . . . . . Prevented . | . . . . . . . . . . . . . Kills | -11 -10 -9 -9 -8 -7 -6 -6 -6 -5 -5 -4 -4 ------- Run | Yrd Mat Mat Sto Mat Fac Fac Was Fac Fac Ext Fac Arm Combat Hostiles Destroyed 228 | . . 10 27 13 25 36 5 10 7 39 44 12 Melee 2 | . . . . . . . . . . . 2 . Guns 142 | . . 6 13 9 11 33 5 10 7 32 11 5 Cannons 22 | . . . . . . . . . . . 15 7 AOE 57 | . . 3 12 4 14 3 . . . 7 14 . Classes Destroyed 20 | . 2 5 1 1 3 3 1 . . 4 . . Worker 11 | . . . 2 2 2 2 . 1 . . 2 . Builder 5 | . . . . . 1 . . . . . 4 . Hauler 16 | . . 4 6 2 1 1 . 1 . . 1 . Recycler 11 | . . 1 5 . 1 2 . . . . 2 . Operator 6 | . 2 . 1 . . . . . . 1 1 1 Watcher 4 | . 1 . 2 . . 1 . . . . . . Swarmer 37 | . . . . . 6 6 . 1 3 12 9 . Saboteur 5 | . . . . . . . . . . 1 2 2 Grunt 95 | . . 4 16 8 16 18 . 3 . 10 15 5 Brawler 8 | . . . . 1 1 . . . . 2 4 . Duelist 4 | . . 1 . . 1 . . . . . 2 . Protector 1 | . . . . . . . . . . 1 . . Sentry 34 | . . 5 11 4 . 1 . . 4 8 1 . Demolisher 2 | . . . . . . . . . . 1 . 1 Specialist 7 | . . . . . . 2 . 3 . . . 2 Hunter 10 | . . . . . . 4 . 1 . . 3 2 Programmer 15 | . . . . . 1 4 . . . 3 7 . Heavy 4 | . . . . . . 1 . 2 . . 1 . Behemoth 2 | . . . . . . . . . . 2 . . Compactor 5 | . . . . . . . 5 . . . . . Thug 3 | . . . . . . . . . . 3 . . Butcher 1 | . . . . . . . . . . 1 . . Best Kill Streak 9 | . 1 5 8 3 9 5 1 7 3 6 7 7 Combat Bots Only 8 | . . 5 8 3 7 4 1 7 3 6 5 7 Max Kills in Single Turn 4 | . 1 2 4 2 3 3 1 1 1 3 3 1 Gunslinging 1 | . . . . . . 1 . . . 1 . . Exploded 3 | . . 2 3 1 3 2 . . . 3 3 . Melee 1 | . . . . . . . . . . . 1 . Uniques/NPCs Destroyed 1 | . . . . . . . . . . 1 . . A7 (-5/Extension) Combat | -11 -10 -9 -9 -8 -7 -6 -6 -6 -5 -5 -4 -4 -------- Run | Yrd Mat Mat Sto Mat Fac Fac Was Fac Fac Ext Fac Arm Hostile Shots Fired 1504 | . . 67 81 52 125 232 2 57 31 193 418 246 Missed 422 | . . 20 25 18 33 64 . 13 7 42 115 85 Damage Taken 21047 | . . 607 961 580 1553 2534 65 1282 508 3254 7139 2564 Core 2113 | . . 106 54 57 212 223 31 68 49 156 578 579 Absorbed by Shields 552 | . . . . . . 282 . . . 120 150 . Reduced by Siege Mode 133 | . . . . . . . . . . 133 . . Redirected to Shielding 52 | . . . . . . . . . . . . 52 Ignored by Resistances 30 | . . . . . . 30 . . . . . . Regen/Repaired (Parts) 594 | . . 64 226 . . . 286 18 . . . . Core Remaining (%) 79 | 100 100 . 60 89 69 . . 62 . 79 . . Volleys Fired 496 | . 3 26 57 27 29 69 17 18 13 71 133 33 Largest 6 | . 2 4 4 6 6 6 6 6 6 6 5 4 Hottest 310 | . 70 224 224 310 279 158 158 168 173 188 273 175 Shots Fired 1851 | . 6 98 172 93 115 388 101 108 74 330 278 88 Gun 1640 | . 6 96 160 86 104 385 101 108 74 321 152 47 Cannon 143 | . . . . . . . . . . . 104 39 Launcher 68 | . . 2 12 7 11 3 . . . 9 22 2 Special . | . . . . . . . . . . . . . Kinetic 1393 | . 3 . . 4 86 385 101 108 74 321 225 86 Thermal 390 | . 3 96 160 82 18 . . . . . 31 . Explosive 68 | . . 2 12 7 11 3 . . . 9 22 2 Electromagnetic . | . . . . . . . . . . . . . Robot Hit Streak 41 | . 2 17 19 10 18 41 28 37 27 29 17 12 Robot Miss Streak 10 | . 1 3 3 2 3 5 3 3 1 4 5 10 Penetration Max 1 | . . . . . 1 1 . . . 1 1 1 Secondary Targets 27 | . . 1 1 . 1 9 . 1 . 12 1 1 Max Gunslinging Chain 1 | . . 1 1 . 1 1 . 1 . 1 1 1 Shots Hit Robots 1258 | . 4 59 118 55 68 254 71 74 55 250 176 74 Core Hits 619 | . 4 20 60 31 53 115 16 27 18 133 106 36 Critical Kills 8 | . . . . . . 4 1 . 1 1 1 . Critical Parts Destroyed 26 | . . . . . 1 9 . 2 1 4 8 1 Critical Strikes 74 | . 1 5 12 3 2 13 4 2 3 5 20 4 Burn 22 | . 1 5 12 3 1 . . . . . . . Destroy 33 | . . . . . 1 13 4 2 3 5 4 1 Blast 14 | . . . . . . . . . . . 11 3 Smash 5 | . . . . . . . . . . . 5 . Melee Attacks 62 | . . . . . 1 . . . 1 13 30 17 Thermal 3 | . . . . . . . . . . . . 3 Impact 32 | . . . . . 1 . . . 1 . 30 . Slashing . | . . . . . . . . . . . . . Piercing . | . . . . . . . . . . . . . Sneak Attacks 27 | . . . . . . . . . . 13 . 14 Combat Hostiles . | . . . . . . . . . . . . . Follow-up Attacks . | . . . . . . . . . . . . . Damage Inflicted 36324 | . 73 1177 2996 1673 3215 4924 1350 1548 1061 7661 8810 1836 Guns 22220 | . 65 950 2058 978 1176 4626 1350 1516 1061 5588 2075 777 Cannons 3284 | . . . . . . . . . . . 2644 640 Explosions 9673 | . . 221 895 678 2039 282 . . . 2046 3093 419 Melee 936 | . . . . . . . . . . . 936 . Ramming 211 | . 8 6 43 17 . 16 . 32 . 27 62 . Kinetic 20721 | . 26 . . 34 1041 4626 1350 1516 1061 5588 4062 1417 Thermal 5338 | . 39 950 2058 944 690 . . . . . 657 . Explosive 9118 | . . 221 895 678 1484 282 . . . 2046 3093 419 Electromagnetic . | . . . . . . . . . . . . . Impact 936 | . . . . . . . . . . . 936 . Slashing . | . . . . . . . . . . . . . Piercing . | . . . . . . . . . . . . . Highest Corruption 28 | . 2 . . . 1 3 . . . 6 27 28 Average Corruption 9 | . 1 . . . 1 1 . . . 2 15 27 Corruption Purged 3 | . . . . . . 3 . . . . . . Corruption Blocked . | . . . . . . . . . . . . . Effects 133 | . 3 . . . 3 14 . . . 20 65 28 Message Errors 32 | . 1 . . . 1 5 . . . 5 14 6 Matter Fused 31 | . . . . . 1 . . . . 7 18 5 Heat Flow Errors 10 | . 1 . . . . 1 . . . 1 3 4 Energy Discharges 15 | . . . . . . 2 . . . 2 8 3 Parts Rejected 8 | . . . . . 1 1 . . . 1 4 1 Parts Fused 2 | . . . . . . . . . . . 2 . Data Loss (minor) 10 | . . . . . . . . . . 1 6 3 Data Loss (major) 5 | . 1 . . . . 2 . . . . 2 . Misfires 5 | . . . . . . 1 . . . . 2 2 Alerts 3 | . . . . . . 1 . . . 1 1 . Misdirections 2 | . . . . . . . . . . . . 2 Weapon Failures 10 | . . . . . . 1 . . . 2 5 2 Overload Shots . | . . . . . . . . . . . . . Overflow Damage 714 | . . 3 24 . 50 . . . . 52 585 . Projectiles 158 | . . . . . . . . . . . 158 . Explosions 222 | . . 3 24 . 50 . . . . 52 93 . Melee 334 | . . . . . . . . . . . 334 . Knockbacks 37 | . . . 1 . . . . . . . 25 11 Impact 7 | . . . 1 . . . . . . . 6 . Kinetic 27 | . . . . . . . . . . . 16 11 Secondary 3 | . . . . . . . . . . . 3 . Self-Inflicted Damage 1086 | . . . 135 52 83 30 . . . 10 678 98 Shots 27 | . . . 4 3 3 1 . . . 1 14 1 Rammed 22 | . 1 4 11 1 . 2 . 1 . 2 . . Targets Rammed 28 | . 2 4 11 1 . 2 . 2 . 3 3 . Kicked 3 | . . . . . . . . . . . 3 . Crushed 3 | . 1 . . . . . . 1 . 1 . . Highest Temperature 484 | . 254 437 454 415 352 171 24 2 . 484 398 171 Average Temperature 111 | . 84 132 142 146 71 20 9 2 . 150 136 37 Received Heat Transfer 4148 | . . 270 303 261 531 486 . 105 72 786 1178 156 Effects 15 | . . . 6 4 . . . . . 1 4 . Shutdowns 3 | . . . . . . . . . . 1 2 . Energy Bleed 4 | . . . 2 1 . . . . . . 1 . Interference 6 | . . . 2 3 . . . . . . 1 . Matter Decay 1 | . . . 1 . . . . . . . . . Short Circuit 1 | . . . 1 . . . . . . . . . Siege Activations 8 | . . . . . . . . . . 8 . . Total Turns 193 | . . . . . . . . . . 193 . . Longest Duration 82 | . . . . . . . . . . 82 . . Robots Corrupted . | . . . . . . . . . . . . . Combat Hostiles . | . . . . . . . . . . . . . Parts Fried 3 | . . . . . . . . . . . 3 . Impact Corruptions 11 | . . . . . . . . . . . 11 . Robots Melted 4 | . . 1 3 . . . . . . . . . Combat Hostiles 3 | . . 1 2 . . . . . . . . . Parts Melted 28 | . 1 6 18 2 . . . . . . . 1 Heat Transferred 11550 | . 185 2479 5180 2220 820 . . . . . 666 . Parts Sabotaged 4 | . . . . . . . . . . . . 4 Parts Stolen . | . . . . . . . . . . . . . Parts Stripped . | . . . . . . . . . . . . . Power Chain Reactions . | . . . . . . . . . . . . . Alert | -11 -10 -9 -9 -8 -7 -6 -6 -6 -5 -5 -4 -4 ------- Run | Yrd Mat Mat Sto Mat Fac Fac Was Fac Fac Ext Fac Arm Peak Influence 1412 | . 80 304 411 131 548 676 232 1412 937 859 1385 993 Initial 686 | . . 33 98 94 57 268 232 8 686 310 420 673 Average 380 | . 50 121 199 59 319 351 128 459 761 632 845 833 Maximum Alert Level 4 | . . 1 2 . 2 2 1 4 3 3 4 3 Low Security (%) 34 | 100 100 84 49 100 10 14 42 22 . . . . Level 1 27 | . . 15 49 . 68 53 57 25 . 9 . . Level 2 20 | . . . 1 . 20 31 . 26 24 55 45 1 Level 3 13 | . . . . . . . . 16 75 34 22 98 Level 4 3 | . . . . . . . . 8 . . 31 . Level 5 . | . . . . . . . . . . . . . High Security . | . . . . . . . . . . . . . Max Security . | . . . . . . . . . . . . . Squads Dispatched 51 | . . 2 4 1 7 8 . 9 1 5 9 5 Investigation 11 | . . . 2 . 5 1 . 1 . . 1 1 Extermination 10 | . . . . . 1 2 . 1 1 . 3 2 Reinforcement 20 | . . 2 1 1 . 5 . 6 . 1 2 2 Assault 9 | . . . . . 1 . . 1 . 4 3 . Garrison 1 | . . . 1 . . . . . . . . . Intercept . | . . . . . . . . . . . . . Searches Triggered . | . . . . . . . . . . . . . Construction Impeded 7 | . . . . 1 . 1 . 2 . 1 2 . Haulers Reinforced 1 | . . . . . . 1 . . . . . . Active Scanning Responses . | . . . . . . . . . . . . . Cargo Convoy Interrupts 1 | . . . . . . . . 1 . . . . Stealth | -11 -10 -9 -9 -8 -7 -6 -6 -6 -5 -5 -4 -4 --------- Run | Yrd Mat Mat Sto Mat Fac Fac Was Fac Fac Ext Fac Arm Distress Signals 18 | . . 4 2 1 1 1 . 2 . 3 2 2 Communications Jammed 33 | . . . . . . . . . . . 33 . Distress Signals 26 | . . . . . . . . . . . 26 . Times Spotted 361 | . 5 16 29 14 39 43 4 39 10 74 58 30 Peak Tracking Total 10 | . 2 7 5 4 7 6 2 8 4 10 7 10 Tactical Retreats 9 | . . 2 . . 1 2 . 1 1 2 . . Traps | -11 -10 -9 -9 -8 -7 -6 -6 -6 -5 -5 -4 -4 ------- Run | Yrd Mat Mat Sto Mat Fac Fac Was Fac Fac Ext Fac Arm Traps Triggered 7 | . . . 1 . 2 2 . . . . 2 . Indirectly . | . . . . . . . . . . . . . Trap Hack Attempts 79 | . . . 10 69 . . . . . . . . Triggered 1 | . . . 1 . . . . . . . . . Disarmed 1 | . . . 1 . . . . . . . . . Reprogrammed 18 | . . 6 . 6 . . . . 6 . . . Reused 3 | . . 3 . . . . . . . . . . Traps Extracted . | . . . . . . . . . . . . . Installed . | . . . . . . . . . . . . . Triggered 3 | . . 3 . . . . . . . . . . Machines | -11 -10 -9 -9 -8 -7 -6 -6 -6 -5 -5 -4 -4 ---------- Run | Yrd Mat Mat Sto Mat Fac Fac Was Fac Fac Ext Fac Arm Machines Disabled 58 | . . 2 2 2 8 2 . 18 1 3 14 6 Max in Single Turn 5 | . . 1 2 1 5 1 . . 1 1 4 3 Garrison Access 4 | . . . 1 1 1 . . . . . 1 . Energy Cycler 2 | . . . . . . . . . . 2 . . Machines Repaired . | . . . . . . . . . . . . . Machines Dismantled . | . . . . . . . . . . . . . Machines Sabotaged . | . . . . . . . . . . . . . Overloaded Fab Kills . | . . . . . . . . . . . . . Hacking | -11 -10 -9 -9 -8 -7 -6 -6 -6 -5 -5 -4 -4 --------- Run | Yrd Mat Mat Sto Mat Fac Fac Was Fac Fac Ext Fac Arm Machines Accessed 59 | . 3 8 15 5 5 5 . 6 4 2 5 1 Terminals 33 | . 3 6 10 3 1 1 . 3 3 1 2 . Fabricators 9 | . . . . . 2 2 . 1 1 . 2 1 Repair Stations 3 | . . 1 2 . . . . . . . . . Recycling Units 8 | . . 1 2 1 1 1 . 1 . 1 . . Scanalyzers 2 | . . . . . . 1 . 1 . . . . Garrison Access 4 | . . . 1 1 1 . . . . . 1 . Total Hacks 156 | . 14 20 46 16 12 12 . 11 9 3 12 1 Successful 75 | . 3 8 24 12 2 6 . 2 7 3 7 1 Failed 81 | . 11 12 22 4 10 6 . 9 2 . 5 . Catastrophic 20 | . 3 3 6 . 5 2 . . 1 . . . Database Lockouts . | . . . . . . . . . . . . . Manual 83 | . 14 15 16 10 4 6 . 3 6 1 7 1 Terminals 93 | . 14 16 29 11 4 1 . 7 6 1 4 . Fabricators 23 | . . . . . 4 6 . 2 3 . 7 1 Repair Stations 11 | . . 3 8 . . . . . . . . . Recycling Units 21 | . . 1 7 4 2 4 . 1 . 2 . . Scanalyzers 2 | . . . . . . 1 . 1 . . . . Garrison Access 6 | . . . 2 1 2 . . . . . 1 . Terminal Hacks 30 | . 3 4 10 6 1 . . . 4 1 1 . Part Schematic 2 | . . . 2 . . . . . . . . . Robot Analysis 9 | . 3 1 1 4 . . . . . . . . Open Door 3 | . . . 2 . . . . . . 1 . . Branch Access Points 2 | . . 1 . . . . . . 1 . . . Unreport Threat 4 | . . . 2 1 . . . . 1 . . . Locate Traps 5 | . . 1 3 1 . . . . . . . . Reprogram Traps 3 | . . 1 . . . . . . 2 . . . Recall Investigation 1 | . . . . . 1 . . . . . . . Zone Layout 1 | . . . . . . . . . . . 1 . Fabricator Hacks 3 | . . . . . . 1 . . 1 . 1 . Network Status 3 | . . . . . . 1 . . 1 . 1 . Repair Station Hacks 9 | . . 2 7 . . . . . . . . . Scan Component 5 | . . 1 4 . . . . . . . . . Repair 4 | . . 1 3 . . . . . . . . . Recycling Unit Hacks 9 | . . . 2 3 . 2 . 1 . 1 . . Process 2 | . . . . 1 . 1 . . . . . . Report Inventory 1 | . . . . 1 . . . . . . . . Retrieve Matter 2 | . . . . 1 . 1 . . . . . . Retrieve Components 4 | . . . 2 . . . . 1 . 1 . . Scanalyzer . | . . . . . . . . . . . . . Garrison Access Hacks 3 | . . . 1 1 . . . . . . 1 . Seal Access 3 | . . . 1 1 . . . . . . 1 . Unauthorized Hacks 21 | . . 2 4 2 1 3 . 1 2 1 4 1 Terminals 8 | . . 2 2 1 1 . . 1 . . 1 . Botnet 6 | . . 1 1 1 1 . . 1 . . 1 . Disrupt 2 | . . 1 1 . . . . . . . . . Fabricators 8 | . . . . . . 2 . . 2 . 3 1 Liberate 3 | . . . . . . 1 . . 1 . 1 . Fabnet 3 | . . . . . . 1 . . 1 . 1 . Overload 1 | . . . . . . . . . . . . 1 Recompile 1 | . . . . . . . . . . . 1 . Repair Stations . | . . . . . . . . . . . . . Recycling Units 5 | . . . 2 1 . 1 . . . 1 . . Reject 5 | . . . 2 1 . 1 . . . 1 . . Scanalyzers . | . . . . . . . . . . . . . Garrison Access . | . . . . . . . . . . . . . Data Cores Recovered 3 | . 2 . . . . . . . . . 1 . Used . | . . . . . . . . . . . . . Hacking Detections 47 | . 3 8 11 3 5 4 . 6 3 . 4 . Full Trace Events 9 | . 2 . 2 . 4 1 . . . . . . Feedback Events 3 | . 2 . . . . 1 . . . . . . Corruption 3 | . 2 . . . . 1 . . . . . . Feedback Blocked . | . . . . . . . . . . . . . Robot Schematics Acquired . | . . . . . . . . . . . . . Robots Built . | . . . . . . . . . . . . . Authchips . | . . . . . . . . . . . . . Time . | . . . . . . . . . . . . . Total Robot Build Rating . | . . . . . . . . . . . . . Part Schematics Acquired 2 | . . . 2 . . . . . . . . . Parts Built . | . . . . . . . . . . . . . Authchips . | . . . . . . . . . . . . . Time . | . . . . . . . . . . . . . Total Part Build Rating . | . . . . . . . . . . . . . Parts Repaired 4 | . . 1 3 . . . . . . . . . Time 185 | . . 51 134 . . . . . . . . . Parts Recycled . | . . . . . . . . . . . . . Recycled Matter 303 | . . . . 295 . 8 . . . . . . Retrieved Matter 380 | . . . . 372 . 8 . . . . . . Retrieved Components 35 | . . . 19 . . . . 10 . 6 . . Parts Scanalyzed . | . . . . . . . . . . . . . Part Schematics Acquired . | . . . . . . . . . . . . . Parts Damaged . | . . . . . . . . . . . . . Bothacking | -11 -10 -9 -9 -8 -7 -6 -6 -6 -5 -5 -4 -4 ------------ Run | Yrd Mat Mat Sto Mat Fac Fac Was Fac Fac Ext Fac Arm Used RIF Installer . | . . . . . . . . . . . . . Robots Hacked 4 | . . . . . . . . . . 3 1 . Non-combat 1 | . . . . . . . . . . 1 . . Combat 3 | . . . . . . . . . . 2 1 . Robot Hacks Applied 1 | . . . . . . . . . . 1 . . find_recycling 1 | . . . . . . . . . . 1 . . Relay Couplers Released 2 | . . . . . 2 . . . . . . . Machine Destruction 2 | . . . . . 2 . . . . . . . Fabnet Peak Effective % 3 | . . . . . . . . . 3 3 1 1 Autooverrided 3 | . . . . . . . . . . 2 1 . Robots Rewired 21 | . . . . . . . . . . 14 . 7 Allies Hacked . | . . . . . . . . . . . . . Hacks Repelled . | . . . . . . . . . . . . . Allies | -11 -10 -9 -9 -8 -7 -6 -6 -6 -5 -5 -4 -4 -------- Run | Yrd Mat Mat Sto Mat Fac Fac Was Fac Fac Ext Fac Arm Total Allies 44 | . . . . . . . 19 . . 17 1 7 Largest Group 19 | . . . . . . . 19 19 . 8 1 7 Highest-Rated Group 684 | . . . . . . . 684 684 . 372 56 326 Highest-Rated Ally 159 | . . . . . . . 50 50 . 159 56 47 Total Orders . | . . . . . . . . . . . . . Ally Attacks 272 | . . . . . . . . 172 . 60 4 36 Total Damage 10162 | . . . . . . . . 6960 . 1667 175 1360 Kills 69 | . . . . . . . . 50 . 12 . 7 Allies Corrupted 1 | . . . . . . . . . . . . 1 Allies Melted 1 | . . . . . . . . 1 . . . . Intel | -11 -10 -9 -9 -8 -7 -6 -6 -6 -5 -5 -4 -4 ------- Run | Yrd Mat Mat Sto Mat Fac Fac Was Fac Fac Ext Fac Arm Robot Analysis Total 9 | . 3 1 1 4 . . . . . . . . Derelict Logs Recovered . | . . . . . . . . . . . . . Drone Launches . | . . . . . . . . . . . . . Drone Recoveries . | . . . . . . . . . . . . . Exploration | -11 -10 -9 -9 -8 -7 -6 -6 -6 -5 -5 -4 -4 ------------- Run | Yrd Mat Mat Sto Mat Fac Fac Was Fac Fac Ext Fac Arm Turns Passed 14666 | 3 311 979 2483 1748 1429 1688 693 944 547 1756 1559 526 Spaces Moved 5375 | 1 174 487 826 449 510 537 294 474 279 601 501 242 Core 37 | . . . . . . . 1 . . . . 36 Treads 4618 | 1 174 487 826 449 510 433 276 474 279 601 108 . Legs 599 | . . . . . . . . . . . 393 206 Wheels 121 | . . . . . . 104 17 . . . . . Hover . | . . . . . . . . . . . . . Flight . | . . . . . . . . . . . . . Fastest Speed 50 | 160 160 160 160 240 246 150 166 160 160 160 120 50 Average Speed 205 | 160 160 160 224 291 246 235 190 172 160 201 186 127 Slowest Speed 1750 | 160 160 160 240 325 246 330 1750 246 160 240 400 330 Overloaded Moves . | . . . . . . . . . . . . . Propulsion Burnouts . | . . . . . . . . . . . . . Robots Hopped . | . . . . . . . . . . . . . Cave-ins Triggered . | . . . . . . . . . . . . . Exploration Rate (%) 35 | 2 28 43 93 39 19 17 87 17 13 59 15 25 Regions Visited 12 Branch Regions 3 Pre-discovered Areas 1 | . . . 1 . . . . . . . . . Known Exits Taken 3 | . . 1 . . . . . . 1 . 1 . Unknown Exits Taken 7 | 1 1 . 1 1 1 . . 1 . 1 . . Scrap Searched . | . . . . . . . . . . . . . Spaces Dug 64 | . . . 11 13 . . . . . 11 29 . Terrain Destroyed 633 | . . 13 87 49 70 6 1 3 1 87 270 46 Melee 2 | . . . . . . . . . . . 2 . Projectile 131 | . . . . . . 1 1 3 1 38 69 18 AOE 499 | . . 13 87 49 70 5 . . . 48 199 28 Terrain Rammed . | . . . . . . . . . . . . . Walls Destroyed . | . . . . . . . . . . . . . Machines Disabled . | . . . . . . . . . . . . . Actions | -11 -10 -9 -9 -8 -7 -6 -6 -6 -5 -5 -4 -4 --------- Run | Yrd Mat Mat Sto Mat Fac Fac Was Fac Fac Ext Fac Arm Total 7801 | 2 202 626 1324 837 621 771 381 559 339 954 814 371 Wait 1040 | . 8 61 356 232 23 80 37 7 22 153 42 19 Move 5364 | . 173 486 825 448 509 537 293 473 278 600 500 242 Hop . | . . . . . . . . . . . . . Pick Up 145 | . 8 10 17 22 12 17 7 10 6 6 19 11 Fast Attach 117 | . 1 8 5 2 7 14 6 8 3 10 35 18 Attach 75 | . 1 4 5 3 6 9 1 2 4 9 21 10 Detach 35 | . 1 2 2 3 2 5 . 4 2 3 8 3 Swap 135 | 2 . 9 18 15 17 19 9 10 5 12 15 4 Drop 162 | . 5 16 18 15 15 19 11 25 5 12 8 13 Fire 496 | . 3 26 57 27 29 69 17 18 13 71 133 33 Melee 62 | . . . . . 1 . . . 1 13 30 17 Ram . | . . . . . . . . . . . . . Kick 3 | . . . . . . . . . . . 3 . Crush 25 | . 2 4 11 1 . 2 . 2 . 3 . . Escape Stasis . | . . . . . . . . . . . . . Rewire 63 | . . . . . . . . . . 62 . 1 Trap 79 | . . . 10 69 . . . . . . . . Miscellaneous . | . . . . . . . . . . . . . Route ------- -11/Scrapyard -10/Materials -9/Materials (discovered 4 exits: *Mat / Min / *Sto x2) -9/Storage -8/Materials -7/Factory (discovered 2 exits: *Fac / [*Low]) -6/Factory -6/Waste -6/Factory -5/Factory (discovered 4 exits: Upp x2 / *Ext x2) -5/Extension -4/Factory -4/Armory History --------- Turn | Location | Event 4 | -11/Scrapyard | Discovered new exit (range 0) 4 | -11/Scrapyard | Entered Materials 252 | -10/Materials | Discovered new exit (range 16) 315 | -10/Materials | Entered another Materials area 315 | -9/Materials | Evolved 2 slots: Weapon x2 728 | -9/Materials | Build established: Tank 848 | -9/Materials | Discovered new exit (range 16) 1027 | -9/Materials | Discovered new exit (range 11) 1099 | -9/Materials | Identified exit to Mines 1099 | -9/Materials | Identified exit to Storage 1139 | -9/Materials | Repaired Imp. Medium Laser 1147 | -9/Materials | Build established: Gunner 1294 | -9/Materials | Entered Storage 1507 | -9/Storage | Build established: Tank 2143 | -9/Storage | Garrison activated, responded to threat 2189 | -9/Storage | Destroyed 8 combat bots 2527 | -9/Storage | Repaired Imp. Medium Laser 2579 | -9/Storage | Repaired Imp. Medium Laser 2619 | -9/Storage | Learned location of Armory (-4) 2943 | -9/Storage | Repaired Med. Armor Plating 3197 | -9/Storage | Discovered new exit (range 5) 3777 | -9/Storage | Entered Materials 3777 | -8/Materials | Evolved 2 slots: Weapon x2 4502 | -8/Materials | Build established: Executioner 4990 | -8/Materials | Discovered new exit (range 14) 5129 | -8/Materials | Build established: Scavenger-Executioner 5517 | -8/Materials | Build established: Executioner 5525 | -8/Materials | Entered Factory 5525 | -7/Factory | Evolved 2 slots: Propulsion x1, Utility x1 5849 | -7/Factory | Lost 3 parts (1p2w) 6138 | -7/Factory | Build established: Scavenger-Executioner 6170 | -7/Factory | Discovered new exit (range 8) 6797 | -7/Factory | Destroyed 7 combat bots 6848 | -7/Factory | Discovered new exit (range 7) 6954 | -7/Factory | Entered another Factory area 6954 | -6/Factory | Evolved 2 slots: Propulsion x1, Utility x1 7589 | -6/Factory | Build established: Executioner 8175 | -6/Factory | Build established: Scavenger-Executioner 8281 | -6/Factory | Lost 4 parts (1n3w) 8642 | -6/Factory | Sucked down chute 8642 | -6/Factory | Entered Waste 8671 | -6/Waste | Spotted C-40 Crusher 8674 | -6/Waste | Spotted C-40 Crusher 8680 | -6/Waste | Destroyed C-40 Crusher 8704 | -6/Waste | Crushed by Compactor (1 part destroyed, 2 dropped) 8707 | -6/Waste | Crushed by Compactor (1 part destroyed, 2 dropped) 8707 | -6/Waste | Destroyed C-40 Crusher 8775 | -6/Waste | Spotted C-40 Crusher 8796 | -6/Waste | Destroyed C-40 Crusher 8841 | -6/Waste | Spotted C-40 Crusher 8849 | -6/Waste | Destroyed C-40 Crusher 8867 | -6/Waste | Spotted C-40 Crusher 8880 | -6/Waste | Destroyed C-40 Crusher 9056 | -6/Waste | Discovered new exit (range 14) 9124 | -6/Waste | Warlord forces began an assault 9146 | -6/Waste | Found Broken Fusion Bomb Launcher 9335 | -6/Waste | Entered Factory 9335 | -6/Factory | Accompanied by 19 allies 9540 | -6/Factory | Spotted B-75 Beast 9546 | -6/Factory | Allies destroyed B-75 Beast 9576 | -6/Factory | Lost 3 allies 9941 | -6/Factory | Assembled infested ambush trap array 10024 | -6/Factory | Cargo convoy interrupted 10035 | -6/Factory | First assault squad dispatched 10061 | -6/Factory | Found Prototype Device 10061 | -6/Factory | Identified Imp. Particle Accelerator 10078 | -6/Factory | Lost 9 allies 10235 | -6/Factory | Lost 4 allies 10235 | -6/Factory | Discovered new exit (range 8) 10279 | -6/Factory | Entered another Factory area 10279 | -5/Factory | Evolved 2 slots: Power x1, Utility x1 10285 | -5/Factory | Destroyed 7 combat bots 10777 | -5/Factory | Discovered new exit (range 4) 10818 | -5/Factory | Identified exit to Upper Caves 10818 | -5/Factory | Identified exit to Extension 10826 | -5/Factory | Entered Extension 11302 | -5/Extension | Spotted B-75 Beast 11329 | -5/Extension | Rescued A7 11426 | -5/Extension | First assault squad dispatched 11589 | -5/Extension | Lost 7 allies 11912 | -5/Extension | Energy Cycler disabled 11912 | -5/Extension | Rescued a captive Derelict 11912 | -5/Extension | Rescued a captive Derelict 11913 | -5/Extension | Rescued a captive Derelict 11917 | -5/Extension | Rescued a captive Derelict 11922 | -5/Extension | Rescued a captive Derelict 11933 | -5/Extension | Murdered A7 11933 | -5/Extension | Destroyed A7 11940 | -5/Extension | Extracted ID and sensor layout for unrecognized location from A7's data core 11949 | -5/Extension | Lost 7 allies 12392 | -5/Extension | Spotted B-75 Beast 12424 | -5/Extension | Destroyed B-75 Beast 12438 | -5/Extension | Destroyed B-75 Beast 12442 | -5/Extension | Lost 4 parts (3u1w) 12451 | -5/Extension | Disrupted transfer network 12465 | -5/Extension | Discovered new exit (range 18) 12519 | -5/Extension | Lost 3 parts (1p2w) 12582 | -5/Extension | Entered Factory 12582 | -4/Factory | Evolved 2 slots: Propulsion x1, Utility x1 12747 | -4/Factory | System corruption reached 10% 12777 | -4/Factory | Lost 4 parts (1n2u1w) 12928 | -4/Factory | Lost 10 parts (6n1u3w) 13332 | -4/Factory | First assault squad dispatched 13582 | -4/Factory | Lost 9 parts (2p2n1u4w) 14039 | -4/Factory | Lost 4 parts (1p2n1w) 14102 | -4/Factory | Discovered new exit (range 15) 14137 | -4/Factory | Core integrity fell below 50% 14139 | -4/Factory | Identified exit to Armory 14141 | -4/Factory | Entered Armory 14205 | -4/Armory | Lost 5 parts (1p1n1u2w) 14215 | -4/Armory | Destroyed 7 combat bots 14475 | -4/Armory | Lost 7 allies 14612 | -4/Armory | Lost 10 parts (3p3n2u2w) 14647 | -4/Armory | Released all parts (14) 14649 | -4/Armory | Core integrity fell below 20% 14667 | -4/Armory | Destroyed by G-67 Veteran with Field Laser Last Messages --------------- 14647_ Released Segregator. 14647_ Released Myomer Leg. 14647_ Released Imp. Phase Shifter. 14647_ Released Coil Gun. 14647_ Released Neutron Missile Launcher. 14648_ Slug penetrates Wall. 14650_ Slug penetrates Holding Depot. 14650_ Penetrated by Slug. 14651_ System corrupted: Matter fused (-7). 14652_ O-24 Administrator: "IFF HANDSHAKE FAILED. SECURING TERMINAL." 14653_ W-44 Eye sends out distress signal. 14659_ Slug penetrates Wall. 14660_ ALERT: Hostiles spotted, dispatching reinforcements to Terminal A002. 14666_ Connecting with Fabricator... >>Force(Overload) EM_IMPRINTER_OVERLOAD 14666_ ALERT: Suspicious activity at Fabricator A001. Dispatching Investigation squad. Map ----- +----------------------------------------------------+ | | | | | | | | | | | | | | | | | | | ?????????????????????????????????????????????????? | | ?????????????????????????????????????????????????? | | ?????????????????????????????????????????????????? | | ?????????????????????????????????????????????????? | | ?????????????????????????????????????????????????? | | ?????????????????????????????????????????????????? | | ?????????????????????????????????????????????????? | | ?????????????????????????????????????????????????? | | ?????????????????????????????????????????????????? | | ??????????????##+##+##??????????????"????????????? | | ????????????### ?????????????"????????????? | | ????????????? ????????????? ????????????? | | ??????????????# ?????????###+##??????????? | | ??????????????# ########## #??????????? | | ?????????????## """" ! #??????????? | | ?????????? g ""F" H #??????????? | | ?????????? g @ ### % #??????????? | | ?????????????????+## #?## ##??????????? | | ???????????????????# = "#?# #???????""""? | | ???????????????????# """"" "### #??????? ?? | | ???????????????????# """"" "##" #??????? ?? | | ???????????????????# """""" T##" #########+#?? | | ???????????????????# """" "### #?? | | ???????????????????# "#?# #?? | | ???????????????????#?? "#?########### #?# | | ??????????????????????? ##???????????# #?# | | ???????????????????????? #????????????# ### | | ?????????????????????????#######????????????+ | | ????????????????????????????????????????????# | | ????????????????????????????????????????????# | | ????????????????????????????????????????????# | | ????????????????????????????????????????????# | | ????????????????????????????????????????????# "" | | ????????????????????????????????????????????# " | | ????????????????????????????????????????????# "" | | ????????????????????????????????????????????# | | ????????????????????????????????????????????" | | ???????????????????????????????????????????"" | | ???????????????????????????????????????????"T | | ????????????????????????????????????????????" | | ????????????????????????????????????????????" | +----------------------------------------------------+ Best States ------------- Heat Dissipation 81 Energy Generation 37 Energy Capacity 500 Matter Stores 300 Matter Capacity 300 Sight Range 22 Terrain Scan Density 10 Jamming Range 14 Armor Coverage 1200 Resistance: TH 15 Propulsion Shielding 33 Phase Shifting 10 Evasion (%) 55 Target Analysis 5 Core Analysis 6 Recoil Reduction 5 Kinecelleration 30 Offensive Hacking 12 Defensive Hacking 10 Authchip Count 3 Item Schematics ----------------- Lyr. Light Armor Plating | -9/Storage | Hacked Plasma Cutter | -9/Storage | Hacked Robot Schematics ------------------ None Fabricated ------------ Nothing Alien Tech Used ----------------- None Achievements -------------- None Challenges ------------ None Game ------ Seed DeuteriumReactionKit Manual? 0 Play Time 01:33:40 Cumulative 1480.9 hours Start 2024.02.24 @ 12:55:00 End 2024.02.24 @ 14:28:05 Sessions 1 Manual Loads 0 Difficulty Rogue Special Mode None Game No. 1031 Rogue 1027 Adventurer 4 Explorer 0 Win Type - Total 180 Types 133/11/12/7/2/1/3/7/4 Lore% 95 Gallery% 98 Achievement% 98 Wizard Run 0 Options --------- Layout 2 ASCII 0 Keyboard 1 Movement Vi Keybinds 0 Fullscreen 0 Font 24/Terminus Map View 59x48 Zoom Use 0% Tactical HUD 1 Map Filters NONE Filters NONE Steam 1 RUN: 5bc482f5-2c9e-4797-9ea2-2b45b9c6c3b4